bitfinex-derivatives/quotes_BTCF0:USTF0_20250405
["timestamp","ask_amount","ask_price","bid_price","bid_amount"]
[1743867831438,0.4068,82515.0,82513.0,0.00119879]
[1743867831743,0.4068,82515.0,82514.0,0.004]
[1743867832037,0.4068,82515.0,82514.0,0.00559968]
[1743867832624,0.00018186,82523.0,82514.0,0.15072366]
[1743867832824,0.00018186,82523.0,82516.0,0.0424316]
[1743867833032,0.36098186,82523.0,82515.0,0.0749]
[1743867833325,0.0694,82522.0,82519.0,0.00221032]
[1743867833528,0.1426,82522.0,82519.0,0.00221032]
[1743867834429,0.1426,82522.0,82518.0,0.0848619]
[1743867834430,0.1426,82522.0,82520.0,0.00221032]
[1743867834834,0.14392,82522.0,82520.0,0.00221032]
[1743867835139,0.14392,82522.0,82520.0,0.04464032]
[1743867835329,0.14392,82522.0,82521.0,0.0848591]
[1743867835531,0.00132,82522.0,82521.0,0.16336942]
[1743867835740,0.36098186,82523.0,82522.0,0.084858]
[1743867836131,0.36098186,82523.0,82522.0,0.193058]
[1743867836330,0.36098186,82523.0,82522.0,0.1082]
[1743867836541,0.36098186,82523.0,82522.0,1.69526832]
[1743867836739,0.36098186,82523.0,82522.0,1.75522832]
[1743867837040,0.0694,82530.0,82522.0,1.75522832]
[1743867837041,0.4302,82530.0,82528.0,0.0848509]
[1743867837427,0.4302,82530.0,82529.0,0.00221032]
[1743867837637,0.43112,82530.0,82529.0,0.00221032]
[1743867838238,0.57401433,82530.0,82529.0,0.08706122]
[1743867838543,0.57401433,82530.0,82529.0,0.00221032]
[1743867838944,0.57501433,82530.0,82529.0,0.00221032]
[1743867839133,0.57501433,82530.0,82529.0,0.00261771]
[1743867839339,0.57501433,82530.0,82527.0,0.1446925]
[1743867839641,0.50561433,82530.0,82527.0,0.05984]
[1743867839839,0.50561433,82530.0,82529.0,0.0848509]
[1743867840045,0.14481433,82530.0,82529.0,0.0915709]
[1743867840234,0.14389433,82530.0,82529.0,0.0915709]
[1743867840439,0.14389433,82530.0,82529.0,1.6653709]
[1743867840839,0.14389433,82530.0,82529.0,1.6593709]
[1743867841038,0.50469433,82530.0,82529.0,1.50194217]
[1743867841341,0.50561433,82530.0,82529.0,0.00194217]
[1743867841543,0.50561433,82530.0,82529.0,0.00122217]
[1743867841844,0.50561433,82530.0,82529.0,0.00722217]
[1743867842044,0.50561433,82530.0,82529.0,0.00818217]
[1743867842248,0.50561433,82530.0,82529.0,0.09303307]
[1743867842437,0.14481433,82530.0,82529.0,0.0848509]
[1743867842637,0.10901658,82530.0,82529.0,0.0856109]
[1743867842846,0.10901658,82530.0,82529.0,0.2192509]
[1743867845039,0.10901658,82530.0,82529.0,0.5800509]
[1743867845239,0.00192,82530.0,82529.0,0.5800509]
[1743867845439,0.00192,82530.0,82529.0,2.0295]
[1743867845635,0.14289433,82534.0,82533.0,0.0848467]
[1743867846153,0.0761,82536.0,82533.0,0.0848467]
[1743867846448,0.0761,82536.0,82535.0,0.0848447]
[1743867846839,0.0761,82536.0,82535.0,1.6552447]
[1743867847046,0.0761,82536.0,82535.0,1.6895447]
[1743867848049,0.0761,82536.0,82535.0,1.69274545]
[1743867848358,0.1396,82548.0,82547.0,0.0848323]
[1743867848653,0.1396,82548.0,82547.0,0.4472333]
[1743867848855,0.0004,82552.0,82551.0,0.0848282]
[1743867849243,0.0004,82552.0,82551.0,0.0745]
[1743867849850,0.0004,82552.0,82551.0,0.076101]
[1743867850147,0.0014,82552.0,82551.0,0.078101]
[1743867850450,0.0014,82552.0,82551.0,0.003601]
[1743867850848,0.00224,82552.0,82551.0,0.004241]
[1743867851649,0.00224,82552.0,82551.0,0.002]
[1743867851853,0.00224,82552.0,82551.0,0.00272]
[1743867852152,0.00224,82552.0,82551.0,0.07382]
[1743867852654,0.14954,82552.0,82551.0,0.07382]
[1743867853444,0.14954,82552.0,82551.0,0.00272]
[1743867854551,0.14954,82552.0,82547.0,0.41964]
[1743867854749,0.14954,82552.0,82547.0,0.37107356]
[1743867855047,0.0848291,82551.0,82547.0,0.01027356]
[1743867855352,0.08606911,82551.0,82547.0,0.01027356]
[1743867855552,0.1485,82550.0,82547.0,0.01027356]
[1743867855752,0.14974001,82550.0,82547.0,0.01027356]
[1743867856155,0.19215461,82550.0,82547.0,0.01027356]
[1743867856456,0.0848308,82549.0,82547.0,0.01027356]
[1743867856646,0.0848313,82548.0,82547.0,0.01327356]
[1743867856845,0.2346513,82548.0,82547.0,0.01827356]
[1743867857255,0.0424184,82543.0,82521.0,1.5848589]
[1743867857453,0.0424221,82536.0,82525.0,0.0848542]
[1743867857653,0.0848461,82534.0,82525.0,0.084854]
[1743867857868,0.0848482,82532.0,82522.0,0.0747]
[1743867858156,0.0848482,82532.0,82521.0,1.5848589]
[1743867858157,0.0848519,82528.0,82527.0,0.00122006]
[1743867858351,0.0864919,82528.0,82527.0,0.00122006]
[1743867858658,0.2334919,82528.0,82527.0,0.00122006]
[1743867858850,0.084856,82525.0,82521.0,1.5]
[1743867859158,0.0708,82524.0,82521.0,1.5]
[1743867859348,0.07252001,82524.0,82521.0,1.5]
[1743867859547,0.07252001,82524.0,82521.0,1.5848583]
[1743867859749,0.07252001,82524.0,82521.0,1.5]
[1743867859946,0.07252001,82524.0,82521.0,1.50889807]
[1743867860651,0.0733,82523.0,82521.0,1.44841444]
[1743867860851,0.07494,82523.0,82521.0,1.44841444]
[1743867861156,0.0738,82522.0,82521.0,1.44841444]
[1743867862154,0.0738,82522.0,82521.0,0.00889807]
[1743867862358,0.0738,82522.0,82519.0,0.00018174]
[1743867862359,0.0848595,82521.0,82519.0,0.00018174]
[1743867862558,0.1599995,82521.0,82519.0,0.00018174]
[1743867862757,0.0738,82520.0,82519.0,0.00018174]
[1743867863652,0.07544,82520.0,82517.0,0.1190316]
[1743867863952,0.0735,82519.0,82518.0,0.0848612]
[1743867864149,0.0735,82519.0,82517.0,0.08577525]
[1743867864457,0.0702,82518.0,82517.0,0.17063845]
[1743867864658,0.0702,82518.0,82517.0,0.24563845]
[1743867865961,0.0702,82518.0,82517.0,0.24683665]
[1743867866558,0.0702,82518.0,82517.0,0.16197345]
[1743867866858,0.0712,82518.0,82517.0,0.01037345]
[1743867867754,0.1560622,82518.0,82517.0,0.01037345]
[1743867867951,0.15878221,82518.0,82517.0,0.01077285]
[1743867868150,0.22858221,82518.0,82517.0,0.01077285]
[1743867869756,0.22858221,82518.0,82514.0,1.51014601]
[1743867870449,0.14372001,82518.0,82514.0,1.5193028]
[1743867870660,0.0424316,82517.0,82514.0,1.5193028]
[1743867870960,0.0848652,82515.0,82514.0,0.0193028]
[1743867871159,0.0848673,82514.0,82510.0,0.0732]
[1743867871459,0.0848682,82513.0,82510.0,0.0732]
[1743867871759,0.0865082,82513.0,82510.0,0.0732]
[1743867871964,0.1473,82512.0,82510.0,0.0732]
[1743867872656,0.1473,82512.0,82510.0,0.13446367]
[1743867872868,0.1473,82512.0,82510.0,0.06126367]
[1743867873062,0.1473,82512.0,82509.0,1.50018174]
[1743867873563,0.1473,82512.0,82509.0,1.50946226]
[1743867874161,0.1483,82512.0,82509.0,1.50946226]
[1743867874853,0.0848704,82510.0,82509.0,0.00946226]
[1743867875050,0.08659041,82510.0,82509.0,0.0106934]
[1743867875253,0.59399041,82510.0,82509.0,0.0106934]
[1743867875659,0.59399041,82510.0,82509.0,0.071832]
[1743867875865,0.59399041,82510.0,82509.0,0.01134837]
[1743867876064,0.0848766,82504.0,82503.0,0.61872]
[1743867876255,0.0865166,82504.0,82503.0,0.61872]
[1743867876456,0.3048166,82504.0,82503.0,0.62786471]
[1743867877168,0.6656166,82504.0,82503.0,1e-08]
[1743867877354,0.0848848,82496.0,82495.0,0.00018174]
[1743867877552,0.0848889,82492.0,82491.0,0.07005295]
[1743867877761,0.08660891,82492.0,82491.0,0.07005295]
[1743867878069,0.15840891,82492.0,82491.0,0.07005295]
[1743867878457,0.07352001,82492.0,82491.0,0.07005295]
[1743867878857,0.07352001,82492.0,82491.0,0.00956932]
[1743867879056,0.07352001,82492.0,82488.0,0.0424462]
[1743867879256,0.0718,82492.0,82491.0,1.5]
[1743867879463,0.1566889,82492.0,82491.0,1.56092232]
[1743867879766,0.1583289,82492.0,82491.0,1.56092232]
[1743867880265,0.2308289,82492.0,82491.0,1.56092232]
[1743867880972,0.0848941,82487.0,82481.0,0.3608]
[1743867881261,0.0849116,82470.0,82469.0,0.06180182]
[1743867881463,0.36244,82470.0,82455.0,0.00060639]
[1743867881661,0.3608,82456.0,82455.0,0.00060639]
[1743867881866,0.445726,82456.0,82451.0,0.01642276]
[1743867882068,0.0849291,82453.0,82452.0,0.0703]
[1743867882275,0.0865691,82453.0,82452.0,0.0703]
[1743867882870,0.0865691,82453.0,82452.0,0.07951112]
[1743867883070,0.0865691,82453.0,82452.0,0.14082286]
[1743867883270,0.0865691,82453.0,82452.0,0.07052286]
[1743867883463,0.0849322,82450.0,82449.0,0.0742]
[1743867883663,0.0865722,82450.0,82449.0,0.07540977]
[1743867884063,0.0865722,82450.0,82449.0,0.00120977]
[1743867884874,0.0875722,82450.0,82449.0,0.07540977]
[1743867885072,0.0875722,82450.0,82449.0,0.01492614]
[1743867885767,0.0849332,82449.0,82448.0,0.01909389]
[1743867885972,0.6001132,82449.0,82448.0,0.07946498]
[1743867886461,0.6001132,82449.0,82448.0,1.57946498]
[1743867887668,0.6021132,82449.0,82448.0,1.57946498]
[1743867888068,0.6021132,82449.0,82448.0,1.51898135]
[1743867888267,0.6021132,82449.0,82436.0,0.4797]
[1743867888268,0.51718,82449.0,82430.0,0.11284629]
[1743867888571,0.3608,82436.0,82430.0,0.11284629]
[1743867888771,0.1426,82435.0,82430.0,1.61284629]
[1743867888974,0.14424,82435.0,82430.0,1.61284629]
[1743867889266,0.50504,82435.0,82417.0,0.61856]
[1743867889473,0.3608,82424.0,82417.0,0.61856]
[1743867889664,0.0699,82423.0,82417.0,0.61856]
[1743867889867,0.07154,82423.0,82417.0,0.61856]
[1743867890068,0.07154,82423.0,82420.0,0.07142097]
[1743867890264,0.07154,82423.0,82422.0,0.084961]
[1743867890463,0.001,82436.0,82424.0,0.0424793]
[1743867890772,0.001,82436.0,82431.0,0.0424756]
[1743867891170,0.001,82436.0,82432.0,0.08495]
[1743867891374,0.001,82436.0,82433.0,0.0849496]
[1743867891677,0.0723,82448.0,82426.0,0.0424784]
[1743867891865,0.0748,82434.0,82431.0,0.0849513]
[1743867892474,0.0748,82434.0,82433.0,0.0849497]
[1743867893672,0.0758,82434.0,82433.0,0.0849497]
[1743867893979,0.0768,82434.0,82433.0,0.0849497]
[1743867894477,0.07804001,82434.0,82427.0,0.0424775]
[1743867894679,0.0768,82434.0,82429.0,0.0849535]
[1743867894865,0.07796,82434.0,82431.0,0.0849515]
[1743867895070,0.07796,82434.0,82431.0,0.0856715]
[1743867895272,0.07796,82434.0,82433.0,0.0849497]
[1743867895575,0.00316,82434.0,82433.0,0.0856297]
[1743867895878,0.1535,82442.0,82441.0,0.0849414]
[1743867896179,0.1543,82442.0,82441.0,1.5855814]
[1743867896366,0.1535,82442.0,82441.0,1.5855814]
[1743867896574,0.1535,82442.0,82441.0,1.57604]
[1743867896864,0.5143,82442.0,82441.0,0.07604]
[1743867897071,0.5161,82442.0,82441.0,0.01555637]
[1743867897371,0.5171,82442.0,82441.0,0.01619637]
[1743867897986,0.5171,82442.0,82441.0,0.01740642]
[1743867898469,0.5171,82442.0,82441.0,0.01780977]
[1743867898773,0.5171,82442.0,82441.0,0.0022534]
[1743867898969,0.5171,82442.0,82441.0,0.0016134]
[1743867899371,0.5171,82442.0,82441.0,0.0022534]
[1743867900077,0.5171,82442.0,82441.0,0.0871948]
[1743867900272,0.5171,82442.0,82441.0,0.1377]
[1743867900673,0.5171,82442.0,82441.0,0.2226414]
[1743867900876,0.5171,82442.0,82441.0,0.1377]
[1743867901277,0.5171,82442.0,82437.0,1.5]
[1743867901574,0.0849513,82432.0,82421.0,0.0849615]
[1743867901775,0.1465,82431.0,82430.0,0.0849528]
[1743867902080,0.1465,82431.0,82430.0,0.1562528]
[1743867902081,0.14770001,82431.0,82430.0,0.1562528]
[1743867902274,0.002,82442.0,82440.0,0.0849422]
[1743867902480,0.00316,82442.0,82437.0,0.001]
[1743867902682,0.3608,82441.0,82437.0,0.001]
[1743867902887,0.36200001,82441.0,82437.0,0.001]
[1743867903386,0.36200001,82441.0,82432.0,0.05226446]
[1743867903569,0.0711,82440.0,82433.0,0.0849487]
[1743867903771,0.0711,82440.0,82439.0,0.0849435]
[1743867903977,0.07226,82440.0,82436.0,0.0424733]
[1743867904173,0.07226,82440.0,82437.0,0.1488]
[1743867904373,0.07226,82440.0,82432.0,0.05724]
[1743867904576,0.3608,82434.0,82432.0,0.05724]
[1743867904777,0.0711,82433.0,82428.0,0.1618546]
[1743867904980,0.0711,82433.0,82430.0,0.0769]
[1743867905285,0.07234001,82433.0,82431.0,0.0849517]
[1743867905586,0.0763,82432.0,82431.0,0.0856317]
[1743867905770,0.07746,82432.0,82431.0,0.1625317]
[1743867906176,0.07746,82432.0,82431.0,0.07758]
[1743867906386,0.07746,82432.0,82431.0,0.1625307]
[1743867907271,0.07846,82432.0,82431.0,0.1625307]
[1743867907675,0.07946,82432.0,82431.0,0.1635307]
[1743867909287,0.07946,82432.0,82431.0,0.10294887]
[1743867909488,0.07946,82432.0,82431.0,0.10358887]
[1743867910083,0.10702566,82439.0,82431.0,0.10358887]
[1743867910084,0.10702566,82439.0,82438.0,0.0849445]
[1743867910293,0.10806567,82439.0,82438.0,0.0849445]
[1743867910581,0.10806567,82439.0,82438.0,1.6609445]
[1743867911084,0.10702566,82439.0,82438.0,2.03076132]
[1743867911284,0.10802566,82439.0,82438.0,2.03176132]
[1743867911884,0.10902566,82439.0,82438.0,2.03176132]
[1743867912081,0.002,82439.0,82438.0,2.03176132]
[1743867912285,0.002,82439.0,82438.0,1.89517949]
[1743867912685,0.002,82439.0,82438.0,1.44041817]
[1743867912878,0.002,82439.0,82438.0,1.52536267]
[1743867913080,0.4097,82442.0,82438.0,1.44041817]
[1743867913474,0.3097,82442.0,82438.0,0.001]
[1743867913678,0.31082001,82442.0,82438.0,0.001]
[1743867913993,0.31082001,82442.0,82439.0,1.5]
[1743867914484,0.31182001,82442.0,82439.0,1.5849426]
[1743867914691,0.31182001,82442.0,82440.0,0.0724]
[1743867914888,0.00212001,82442.0,82441.0,0.0849414]
[1743867915079,0.00112001,82442.0,82440.0,0.0724]
[1743867915274,0.001,82442.0,82439.0,0.002]
[1743867915478,0.0849422,82441.0,82431.0,0.05676]
[1743867915679,0.0849422,82441.0,82430.0,0.11284629]
[1743867915680,0.00104001,82441.0,82430.0,0.11284629]
[1743867915991,0.3608,82436.0,82431.0,1.5]
[1743867916287,0.0743,82435.0,82431.0,1.5]
[1743867916593,0.1512,82435.0,82432.0,0.0849505]
[1743867916784,0.0765,82434.0,82431.0,1.5849511]
[1743867916984,0.0765,82434.0,82431.0,1.5]
[1743867917287,0.0769,82433.0,82432.0,0.0849506]
[1743867917490,0.0769,82433.0,82432.0,0.1606506]
[1743867917683,0.0769,82433.0,82432.0,0.2354506]
[1743867917898,0.0769,82433.0,82432.0,0.2394506]
[1743867918389,0.0769,82433.0,82432.0,0.01821817]
[1743867918689,0.0769,82433.0,82432.0,0.004]
[1743867919082,0.1661,82433.0,82432.0,0.004]
[1743867919281,0.1661,82433.0,82432.0,0.0889507]
[1743867919479,0.1671,82433.0,82432.0,0.0869507]
[1743867919686,0.1671,82433.0,82432.0,0.002]
[1743867919888,0.22711431,82433.0,82432.0,0.002]
[1743867920088,0.22823432,82433.0,82432.0,0.00272]
[1743867920391,0.22623432,82433.0,82432.0,0.00072]
[1743867920587,0.22823432,82433.0,82432.0,0.00172]
[1743867920781,0.31318402,82433.0,82432.0,0.00172]
[1743867920981,0.22723432,82433.0,82432.0,0.001]
[1743867921191,0.31523432,82433.0,82432.0,0.001]
[1743867921391,0.31523432,82433.0,82426.0,0.0566]
[1743867921687,0.31523432,82433.0,82426.0,0.00072]
[1743867921876,0.0849559,82427.0,82426.0,0.00072]
[1743867922075,0.0862359,82427.0,82426.0,0.00072]
[1743867922280,0.2581359,82427.0,82426.0,0.00072]
[1743867923291,0.2591359,82427.0,82426.0,0.00272]
[1743867923880,0.2601359,82427.0,82426.0,0.00394883]
[1743867924082,0.2591359,82427.0,82426.0,0.00194883]
[1743867924287,0.2601359,82427.0,82426.0,0.00394883]
[1743867924497,0.0424786,82426.0,82421.0,1.5]
[1743867924790,0.0849593,82424.0,82421.0,1.50064]
[1743867924996,0.0835,82423.0,82421.0,1.50064]
[1743867925288,0.1656,82423.0,82422.0,0.084961]
[1743867925486,0.1656,82423.0,82422.0,0.0822]
[1743867925982,0.1656,82423.0,82422.0,1.5822]
[1743867926385,0.001,82427.0,82426.0,0.0849569]
[1743867926591,0.17958174,82428.0,82427.0,0.0849559]
[1743867927283,0.17958174,82428.0,82427.0,1.7476559]
[1743867927483,0.0835,82435.0,82430.0,0.0424763]
[1743867927682,0.29769317,82435.0,82434.0,0.0849486]
[1743867927887,0.29873318,82435.0,82431.0,0.1627]
[1743867928093,0.29873318,82435.0,82432.0,0.0864]
[1743867928382,0.29873318,82435.0,82434.0,0.0849486]
[1743867928584,0.29873318,82435.0,82433.0,0.1673487]
[1743867928784,0.29873318,82435.0,82434.0,0.0849486]
[1743867928985,0.29873318,82435.0,82433.0,0.1639]
[1743867929185,0.29873318,82435.0,82433.0,0.2488494]
[1743867929393,0.29873318,82435.0,82433.0,0.1639]
[1743867929584,0.0828,82434.0,82427.0,0.05748]
[1743867929779,0.0828,82434.0,82433.0,0.001]
[1743867929989,0.08388,82434.0,82433.0,0.00164]
[1743867930391,0.1688286,82434.0,82433.0,0.00164]
[1743867930590,0.08388,82434.0,82427.0,0.0815]
[1743867930797,0.3608,82430.0,82427.0,0.00312]
[1743867930991,0.0828,82429.0,82427.0,0.00312]
[1743867931295,0.08384001,82429.0,82427.0,0.00312]
[1743867932195,0.08384001,82429.0,82428.0,0.00120642]
[1743867932387,0.08384001,82429.0,82428.0,0.00192642]
[1743867932693,0.08384001,82429.0,82428.0,0.00232856]
[1743867932996,0.16879381,82429.0,82428.0,0.00232856]
[1743867933178,0.25129381,82429.0,82428.0,0.00160856]
[1743867933585,0.0849561,82427.0,82420.0,0.0213639]
[1743867933797,0.0804,82426.0,82421.0,0.0849619]
[1743867934094,0.08144001,82426.0,82424.0,0.0849584]
[1743867934291,0.08144001,82426.0,82425.0,0.1732]
[1743867934595,0.08144001,82426.0,82425.0,0.17388]
[1743867935088,0.08144001,82426.0,82425.0,0.2588379]
[1743867935895,1e-08,82426.0,82425.0,0.2588379]
[1743867936083,0.05901479,82429.0,82428.0,0.0849548]
[1743867936485,0.05901479,82429.0,82423.0,0.1740598]
[1743867936791,0.002,82426.0,82425.0,0.0849571]
[1743867937092,0.002,82426.0,82423.0,0.45477642]
[1743867937296,0.001,82426.0,82424.0,0.0825]
[1743867937690,0.001,82426.0,82425.0,0.0849579]
[1743867937890,0.001,82426.0,82425.0,0.1716579]
[1743867938096,0.002,82426.0,82425.0,0.1716579]
[1743867938282,0.21419317,82435.0,82427.0,0.0849552]
[1743867938487,0.21419317,82435.0,82425.0,0.1704]
[1743867938796,0.21419317,82435.0,82430.0,0.0849524]
[1743867938991,0.21419317,82435.0,82431.0,0.1704]
[1743867939197,0.0815,82434.0,82433.0,0.0849497]
[1743867939699,0.0815,82434.0,82430.0,0.0424762]
[1743867939891,0.0815,82434.0,82430.0,0.41229302]
[1743867940090,0.08222,82434.0,82431.0,0.0849512]
[1743867940291,0.08222,82434.0,82431.0,0.00072]
[1743867940689,0.08222,82434.0,82432.0,0.08495]
[1743867940887,0.08222,82434.0,82432.0,0.00076]
[1743867941083,0.08322,82434.0,82431.0,0.001]
[1743867941293,0.08322,82434.0,82431.0,0.0867114]
[1743867941489,0.08322,82434.0,82433.0,0.0849497]
[1743867941694,0.08322,82434.0,82433.0,0.0855897]
[1743867941898,0.14223323,82434.0,82433.0,0.0855897]
[1743867942095,0.14223323,82434.0,82433.0,0.08544]
[1743867942290,0.14223323,82434.0,82433.0,0.0855897]
[1743867942491,0.14223323,82434.0,82433.0,0.0849497]
[1743867942687,0.14223323,82434.0,82433.0,0.00072]
[1743867942894,0.06073323,82434.0,82433.0,0.0849497]
[1743867943094,0.06073323,82434.0,82433.0,0.1705097]
[1743867943392,0.06073323,82434.0,82433.0,0.1715097]
[1743867943590,0.02280171,82434.0,82433.0,0.1735097]
[1743867943789,0.02360171,82434.0,82433.0,0.1725097]
[1743867943994,0.02360171,82434.0,82433.0,0.1735097]
[1743867944393,0.02360171,82434.0,82433.0,0.54332652]
[1743867944898,0.01145453,82434.0,82433.0,0.54332652]
[1743867945201,0.03032,82441.0,82440.0,0.0849425]
[1743867945202,0.01277453,82441.0,82440.0,0.0849425]
[1743867945402,0.01341453,82441.0,82440.0,0.00108]
[1743867945598,0.00545,82440.0,82436.0,0.0849462]
[1743867945800,0.3608,82437.0,82436.0,0.00112]
[1743867945999,0.3618,82437.0,82436.0,0.37093682]
[1743867946205,0.3618,82437.0,82436.0,0.45588242]
[1743867946388,0.3618,82437.0,82436.0,0.45588342]
[1743867947197,0.3628,82437.0,82436.0,0.45688342]
[1743867947502,0.002,82437.0,82436.0,0.45688342]
[1743867947695,0.08755,82440.0,82439.0,0.0849435]
[1743867947897,0.08855,82440.0,82439.0,0.0859435]
[1743867948894,0.0831,82440.0,82439.0,0.001]
[1743867949091,0.0421,82440.0,82439.0,0.0889435]
[1743867949287,0.21419317,82445.0,82439.0,0.0889435]
[1743867949288,0.20589383,82445.0,82444.0,0.0849383]
[1743867949497,0.20721383,82445.0,82444.0,0.0849383]
[1743867949701,0.20071783,82445.0,82444.0,0.4470583]
[1743867949898,0.0926,82460.0,82449.0,0.169865]
[1743867950199,0.0884,82453.0,82449.0,0.171545]
[1743867950401,0.0884,82453.0,82450.0,0.0849319]
[1743867950596,0.0884,82453.0,82450.0,0.0892]
[1743867951595,0.00018199,82459.0,82453.0,0.0849291]
[1743867951801,0.088,82458.0,82453.0,0.00168]
[1743867951994,0.088,82458.0,82453.0,0.1710091]
[1743867952194,0.088,82458.0,82453.0,0.2614091]
[1743867952497,0.0916,82457.0,82453.0,0.2614091]
[1743867953901,0.0916,82457.0,82453.0,0.1770091]
[1743867954101,0.0916,82457.0,82453.0,0.1790091]
[1743867954502,0.0916,82457.0,82453.0,0.2654091]
[1743867955001,0.0916,82457.0,82453.0,0.2637291]
[1743867955202,0.0916,82457.0,82453.0,0.2648891]
[1743867955411,0.347695,82454.0,82453.0,0.2648891]
[1743867955599,0.0916,82457.0,82456.0,0.084926]
[1743867955903,0.0916,82457.0,82456.0,0.086086]
[1743867956203,0.0916,82457.0,82456.0,0.258286]
[1743867956399,0.00018199,82459.0,82458.0,0.0849239]
[1743867956601,0.0858,82475.0,82461.0,0.04246]
[1743867956797,0.0358,82475.0,82466.0,0.0424578]
[1743867957002,0.0358,82475.0,82467.0,0.214657]
[1743867957300,0.0358,82475.0,82471.0,0.0849098]
[1743867957503,0.0358,82475.0,82473.0,0.0849081]
[1743867957702,0.0358,82475.0,82474.0,0.1713]
[1743867957900,0.3608,82478.0,82474.0,0.11187817]
[1743867957901,0.30980001,82478.0,82474.0,0.11187817]
[1743867958105,0.0883,82477.0,82474.0,0.11187817]
[1743867958296,0.0883,82477.0,82474.0,0.19678467]
[1743867958496,0.002,82475.0,82474.0,0.20595392]
[1743867959498,0.002,82475.0,82474.0,0.63645605]
[1743867959698,0.080687,82477.0,82476.0,0.0849054]
[1743867960001,0.080687,82477.0,82476.0,0.0860654]
[1743867960197,0.079687,82477.0,82476.0,0.17306]
[1743867960405,0.079687,82477.0,82476.0,0.2579654]
[1743867960705,0.079687,82477.0,82476.0,0.17306]
[1743867960900,0.079687,82477.0,82476.0,0.2599654]
[1743867961095,0.079687,82477.0,82476.0,0.19938357]
[1743867961290,0.079687,82477.0,82476.0,0.11447817]
[1743867961896,0.029687,82477.0,82476.0,0.19938357]
[1743867962101,0.018723,82477.0,82476.0,0.1724054]
[1743867962301,0.0875,82491.0,82484.0,0.0424485]
[1743867962600,0.1805,82491.0,82488.0,0.0848923]
[1743867962801,0.25006509,82492.0,82490.0,0.0424455]
[1743867963007,0.093,82498.0,82497.0,0.0848838]
[1743867963305,0.3608,82510.0,82498.0,0.0848827]
[1743867963515,0.00018188,82506.0,82502.0,0.0848781]
[1743867963805,0.00018188,82506.0,82503.0,0.0864]
[1743867963999,0.0924,82505.0,82503.0,0.02581817]
[1743867964906,0.0924,82505.0,82504.0,0.0848766]
[1743867965103,0.09332,82505.0,82504.0,0.00092]
[1743867965305,0.18572,82505.0,82504.0,0.00092]
[1743867965806,0.02995699,82510.0,82505.0,0.0848755]
[1743867966108,0.1848,82509.0,82505.0,0.00124]
[1743867966300,0.18592001,82509.0,82505.0,0.00124]
[1743867966605,0.09352001,82509.0,82508.0,0.0848724]
[1743867966801,0.09352001,82509.0,82508.0,0.0859924]
[1743867967005,0.09352001,82509.0,82508.0,0.00112]
[1743867967403,0.09352001,82509.0,82508.0,0.45580922]
[1743867967404,0.20070093,82509.0,82508.0,0.45580922]
[1743867967609,0.12921676,82523.0,82509.0,0.0424354]
[1743867967907,0.09304,82518.0,82517.0,0.0848632]
[1743867968108,0.12921676,82523.0,82520.0,0.0848597]
[1743867968409,0.12921676,82523.0,82521.0,0.0848587]
[1743867968593,0.12921676,82523.0,82521.0,0.09368]
[1743867969602,0.12921676,82523.0,82521.0,0.178539]
[1743867970110,0.13721676,82523.0,82521.0,0.11795717]
[1743867970312,0.0926,82522.0,82521.0,0.00188]
[1743867970700,0.2694,82522.0,82521.0,0.00188]
[1743867971705,0.2724,82522.0,82521.0,0.00188]
[1743867972107,0.0929,82522.0,82521.0,0.0867391]
[1743867972408,0.3612,82552.0,82521.0,0.62428616]
[1743867972606,0.32876629,82552.0,82544.0,0.0424173]
[1743867972808,0.1708,82551.0,82545.0,0.0897]
[1743867973112,0.1708,82551.0,82545.0,0.11583217]
[1743867973304,0.0927,82550.0,82545.0,0.03099817]
[1743867973509,0.0927,82550.0,82545.0,0.0919667]
[1743867973811,0.0839,82549.0,82545.0,0.1768011]
[1743867974011,0.0839,82549.0,82546.0,0.0848332]
[1743867974204,0.0844,82548.0,82547.0,0.0848323]
[1743867974403,0.0844,82548.0,82547.0,0.1765123]
[1743867974704,0.0844,82548.0,82547.0,0.00188]
[1743867975497,0.0844,82548.0,82547.0,0.0867123]
[1743867976207,0.001,82549.0,82547.0,0.0867123]
[1743867976515,0.1757,82555.0,82554.0,0.0848252]
[1743867976705,0.1757,82555.0,82554.0,0.36268]
[1743867976907,0.1757,82555.0,82554.0,0.00188]
[1743867977107,0.1757,82555.0,82544.0,0.3608]
[1743867977303,0.1757,82555.0,82545.0,0.20280223]
[1743867977611,0.1757,82555.0,82551.0,0.0848281]
[1743867977799,0.1757,82555.0,82553.0,0.0848252]
[1743867978003,0.1757,82555.0,82554.0,0.1818252]
[1743867978213,0.1757,82555.0,82554.0,0.1837052]
[1743867978413,0.1757,82555.0,82554.0,0.09888]
[1743867978803,0.1757,82555.0,82554.0,0.00188]
[1743867979002,0.1757,82555.0,82545.0,0.21600853]
[1743867979204,0.1757,82555.0,82545.0,0.1082667]
[1743867979399,0.3608,82552.0,82545.0,0.0142667]
[1743867979608,0.1804,82551.0,82545.0,0.0142667]
[1743867980104,0.1804,82551.0,82545.0,0.0082667]
[1743867980506,0.1804,82551.0,82545.0,0.0022667]
[1743867981418,0.1804,82551.0,82545.0,0.0082667]
[1743867981610,0.0424155,82549.0,82545.0,0.0082667]
[1743867981811,0.1779,82548.0,82545.0,0.0082667]
[1743867982010,0.0921,82547.0,82545.0,0.0142667]
[1743867982205,0.0921,82547.0,82539.0,0.61852]
[1743867982417,0.1775,82546.0,82539.0,0.57370663]
[1743867983009,0.1775,82546.0,82540.0,0.0848392]
[1743867983209,0.1775,82546.0,82540.0,0.0861992]
[1743867983504,0.1775,82546.0,82545.0,0.012]
[1743867983703,0.1775,82546.0,82545.0,0.01332]
[1743867984115,0.1775,82546.0,82545.0,0.1572861]
[1743867984615,0.1775,82546.0,82545.0,0.1512861]
[1743867985116,0.1775,82546.0,82545.0,0.2434861]
[1743867985314,0.1775,82546.0,82545.0,0.1513317]
[1743867985510,0.1775,82546.0,82545.0,0.1522517]
[1743867985714,0.1775,82546.0,82545.0,0.2370861]
[1743867985920,0.1775,82546.0,82545.0,0.1522517]
[1743867986104,0.1785,82546.0,82545.0,0.1572517]
[1743867986420,0.2643334,82546.0,82545.0,0.0650517]
[1743867986908,0.2623334,82546.0,82545.0,0.0600517]
[1743867987106,0.2643334,82546.0,82545.0,0.0650517]
[1743867987506,0.2633334,82546.0,82545.0,0.0650517]